bitfinex/quotes_SOLUSD_20241231
["timestamp","ask_amount","ask_price","bid_price","bid_amount"]
[1735647323773,6.1316,194.26,194.23,0.12549]
[1735647324280,6.1316,194.26,194.22,24.153354]
[1735647325289,1.5392,194.27,194.22,24.153354]
[1735647327693,1.5392,194.27,194.22,0.37647]
[1735647333292,6.3518,194.31,194.26,0.12549]
[1735647334893,6.3518,194.31,194.25,10.19365474]
[1735647335083,6.3518,194.31,194.21,12.8722]
[1735647335282,6.3518,194.31,194.22,10.19365474]
[1735647335783,6.3518,194.31,194.23,23.902374]
[1735647338194,6.3518,194.31,194.23,34.09602874]
[1735647338373,6.3518,194.31,194.24,23.776884]
[1735647339888,6.3518,194.31,194.25,0.37647]
[1735647340090,6.3518,194.31,194.26,23.776884]
[1735647340479,6.3518,194.31,194.25,0.12549]
[1735647341193,6.3518,194.31,194.25,23.902374]
[1735647342783,6.3518,194.31,194.27,23.902374]
[1735647342989,1.5472,194.32,194.29,0.12549]
[1735647343191,6.4454,194.36,194.29,23.902374]
[1735647343398,6.4454,194.36,194.29,0.12549]
[1735647344203,6.4454,194.36,194.29,23.902374]
[1735647346901,6.4454,194.36,194.31,0.12549]
[1735647348986,6.4454,194.36,194.33,0.12549]
[1735647349498,1.5154,194.37,194.33,0.12549]
[1735647352907,1.5154,194.37,194.29,10.19365474]
[1735647353093,1.5154,194.37,194.27,10.19365474]
[1735647353293,1.5154,194.37,194.28,24.153354]
[1735647353602,1.5154,194.37,194.28,34.34700874]
[1735647353804,1.5154,194.37,194.3,24.153354]
[1735647354399,1.5154,194.37,194.3,10.57012474]
[1735647354606,1.5154,194.37,194.32,24.153354]
[1735647355611,1.5154,194.37,194.32,0.37647]
[1735647356126,1.5154,194.37,194.3,33.97053874]
[1735647356127,1.5154,194.37,194.31,20.0]
[1735647356408,1.5154,194.37,194.29,24.153354]
[1735647357700,1.5154,194.37,194.29,10.57012474]
[1735647358284,1.5154,194.37,194.31,23.902374]
[1735647359117,1.5154,194.37,194.32,0.25098]
[1735647362091,1.5154,194.37,194.33,0.12549]
[1735647362499,1.5154,194.37,194.34,23.776884]
[1735647365409,1.5154,194.37,194.35,0.37647]
[1735647365608,6.3957,194.41,194.35,0.37647]
[1735647365801,6.3957,194.41,194.37,0.37647]
[1735647366195,1.6278,194.42,194.37,0.37647]
[1735647367113,6.342,194.45,194.36,33.97053874]
[1735647367114,6.342,194.45,194.39,0.12549]
[1735647367614,6.342,194.45,194.39,0.37647]
[1735647376721,1.6278,194.46,194.39,0.37647]
[1735647379934,1.6278,194.46,194.36,137.6]
[1735647380304,1.6278,194.46,194.37,24.027864]
[1735647380736,1.6278,194.46,194.38,0.12549]
[1735647381231,6.0663,194.45,194.33,229.79365474]
[1735647381523,6.0663,194.45,194.32,11.70595474]
[1735647381828,6.0663,194.45,194.31,10.19365474]
[1735647382028,6.0663,194.45,194.32,24.153354]
[1735647382230,6.0663,194.45,194.31,10.19365474]
[1735647382604,6.0663,194.45,194.32,24.153354]
[1735647382802,6.0663,194.45,194.32,10.57012474]
[1735647384028,6.0663,194.45,194.32,24.153354]
[1735647384232,6.0663,194.45,194.33,0.12549]
[1735647384411,6.0663,194.45,194.34,23.776884]
[1735647385119,6.0663,194.45,194.33,20.12549]
[1735647392733,6.0663,194.45,194.35,0.37647]
[1735647392934,6.0663,194.45,194.37,0.37647]
[1735647393235,6.0663,194.45,194.39,0.12549]
[1735647393612,6.0663,194.45,194.38,0.12549]
[1735647394113,6.0663,194.45,194.35,10.19365474]
[1735647394313,6.0663,194.45,194.33,157.6]
[1735647394539,6.0663,194.45,194.33,167.79365474]
[1735647395223,6.0663,194.45,194.34,24.153354]
[1735647395715,6.0663,194.45,194.34,23.902374]
[1735647400134,6.0663,194.45,194.34,34.09602874]
[1735647401341,6.0663,194.45,194.34,23.902374]
[1735647406436,6.0663,194.45,194.36,0.12549]
[1735647409848,6.0663,194.45,194.36,23.902374]
[1735647410529,6.0663,194.45,194.36,0.12549]
[1735647410728,1.6493,194.44,194.34,23.776884]
[1735647411623,1.6493,194.44,194.33,24.153354]
[1735647415831,20.0,194.42,194.33,23.902374]
[1735647416032,1.6493,194.44,194.3,18.24148862]
[1735647416033,6.1338,194.41,194.3,18.24148862]
[1735647416350,6.1338,194.41,194.31,24.153354]
[1735647417658,6.1338,194.37,194.28,8.04783388]
[1735647417847,7.7831,194.37,194.28,8.04783388]
[1735647418431,7.7831,194.37,194.27,8.04783388]
[1735647419758,7.7831,194.37,194.26,3.57076442]
[1735647419759,7.7831,194.37,194.26,24.153354]
[1735647419959,7.7831,194.37,194.26,34.34700874]
[1735647420136,7.7831,194.37,194.26,24.153354]
[1735647420463,20.0,194.34,194.22,8.04783388]
[1735647420657,6.1338,194.32,194.22,8.04783388]
[1735647420866,6.1338,194.32,194.22,18.24148862]
[1735647421160,6.1338,194.32,194.28,20.0]
[1735647421462,6.1338,194.32,194.24,24.153354]
[1735647421685,6.1338,194.32,194.23,10.19365474]
[1735647422474,6.1338,194.32,194.24,24.153354]
[1735647422842,6.1338,194.32,194.24,10.57012474]
[1735647424167,6.1338,194.32,194.26,23.902374]
[1735647426765,6.1338,194.32,194.26,0.12549]
[1735647426949,6.1338,194.32,194.26,23.902374]
[1735647427466,6.1338,194.32,194.28,0.12549]
[1735647427845,6.1338,194.32,194.27,23.776884]
[1735647428169,6.1338,194.32,194.27,43.776884]
[1735647428656,6.1338,194.32,194.24,12.8702]
[1735647428968,6.1338,194.32,194.26,24.153354]
[1735647429141,6.1338,194.32,194.25,23.776884]
[1735647429567,6.1338,194.32,194.25,24.153354]
[1735647430181,6.1338,194.32,194.25,10.57012474]
[1735647431045,6.1338,194.32,194.27,10.57012474]
[1735647431254,1.6493,194.33,194.3,23.776884]
[1735647431572,6.1761,194.36,194.3,23.776884]
[1735647432774,6.1761,194.36,194.29,0.37647]
[1735647432958,6.1761,194.36,194.26,23.776884]
[1735647433161,6.1761,194.36,194.26,33.97053874]
[1735647433673,6.1761,194.36,194.27,0.37647]
[1735647436479,6.1761,194.36,194.28,23.776884]
[1735647437175,6.1761,194.36,194.29,0.12549]
[1735647437365,6.1761,194.36,194.29,0.37647]
[1735647439759,6.1761,194.36,194.3,23.776884]
[1735647440473,6.1761,194.36,194.31,0.12549]
[1735647444578,6.1761,194.36,194.28,10.19365474]
[1735647444783,6.1761,194.36,194.27,10.19365474]
[1735647445077,6.1761,194.36,194.28,10.57012474]
[1735647446659,1.518,194.38,194.32,10.57012474]
[1735647446995,1.518,194.38,194.34,0.12549]
[1735647449791,1.518,194.38,194.33,0.12549]
[1735647450777,1.518,194.38,194.33,23.902374]
[1735647453172,1.518,194.38,194.34,0.25098]
[1735647453381,6.5815,194.42,194.37,0.12549]
[1735647453382,8.0987,194.42,194.37,0.12549]
[1735647454476,8.0987,194.42,194.34,33.97053874]
[1735647455081,8.0987,194.42,194.35,0.37647]
[1735647458584,8.0987,194.42,194.33,147.79365474]
[1735647458785,8.0987,194.42,194.34,0.37647]
[1735647464308,8.0987,194.42,194.33,20.0]
[1735647464703,8.0987,194.42,194.34,0.12549]
[1735647467785,8.0987,194.42,194.29,10.19365474]
[1735647467998,8.0987,194.42,194.31,20.0]
[1735647468200,8.0987,194.42,194.29,10.31914474]
[1735647468599,8.0987,194.42,194.31,0.12549]
[1735647469398,8.0987,194.42,194.3,0.25098]
[1735647469597,8.0987,194.42,194.3,0.12549]
[1735647469996,8.0987,194.42,194.32,0.25098]
[1735647478933,1.6104,194.39,194.27,151.52544322]
[1735647479117,26.6167,194.38,194.27,13.92544322]
[1735647479318,1.6104,194.37,194.28,0.37647]
[1735647482846,1.6104,194.37,194.31,0.12549]
[1735647488845,1.6104,194.37,194.33,0.12549]
[1735647499964,1.52,194.42,194.36,23.776884]
[1735647500259,1.52,194.42,194.37,10.57012474]
[1735647501839,6.1686,194.43,194.39,10.57012474]
[1735647502050,1.52,194.46,194.41,0.37647]
[1735647502364,1.52,194.46,194.41,10.57012474]
[1735647502566,1.52,194.46,194.41,0.37647]
[1735647506545,1.52,194.46,194.36,145.64783388]
[1735647506871,1.52,194.46,194.37,24.153354]
[1735647508256,1.52,194.46,194.41,0.37647]
[1735647512885,6.1686,194.48,194.41,24.153354]
[1735647513184,6.1686,194.48,194.41,161.753354]
[1735647514358,1.52,194.51,194.41,161.753354]
[1735647514556,1.52,194.51,194.41,171.94700874]
[1735647515561,1.52,194.51,194.45,0.12549]
[1735647515755,1.52,194.51,194.45,0.37647]
[1735647516750,1.52,194.51,194.39,10.19365474]
[1735647517183,1.52,194.51,194.41,20.0]
[1735647517366,1.52,194.51,194.42,0.37647]
[1735647523387,20.0,194.5,194.39,20.0]
[1735647523565,20.0,194.5,194.36,229.79365474]
[1735647524081,6.1886,194.49,194.4,20.37647]
[1735647524261,6.1886,194.49,194.36,219.6]
[1735647524469,1.5002,194.48,194.36,219.6]
[1735647524773,29.965484,194.47,194.32,8.08024741]
[1735647524978,1.5002,194.44,194.3,155.87390215]
[1735647525684,1.5002,194.44,194.34,20.37647]
[1735647526064,6.1886,194.43,194.28,147.79365474]
[1735647526584,6.1886,194.43,194.31,20.0]
[1735647527281,6.1886,194.43,194.29,0.12549]
[1735647527480,6.1886,194.43,194.29,24.153354]
[1735647527687,6.1886,194.43,194.33,0.37647]
[1735647529696,6.1886,194.43,194.33,20.37647]
[1735647534795,6.1886,194.43,194.36,0.37647]
[1735647535189,6.1886,194.43,194.36,0.12549]
[1735647536504,6.1886,194.43,194.31,137.6]
[1735647537091,6.1886,194.43,194.32,0.37647]
[1735647538303,1.6571,194.41,194.31,137.6]
[1735647538500,6.1216,194.4,194.27,145.68024741]
[1735647538702,6.1216,194.4,194.31,0.37647]
[1735647541401,6.1216,194.4,194.3,20.0]
[1735647541914,6.1216,194.4,194.31,0.37647]
[1735647543026,6.1216,194.4,194.31,0.25098]
[1735647543808,6.1216,194.4,194.32,0.12549]
[1735647544009,6.1216,194.4,194.36,0.12549]
[1735647544392,6.1216,194.4,194.36,0.25098]
[1735647547014,6.1216,194.4,194.35,20.0]
[1735647547311,6.1216,194.4,194.32,137.72549]
[1735647547816,6.1216,194.4,194.33,0.25098]
[1735647550492,6.1216,194.4,194.28,145.68024741]
[1735647550699,6.1216,194.4,194.28,155.87390215]
[1735647551319,6.1216,194.4,194.29,0.37647]
[1735647551793,23.776884,194.39,194.27,10.19365474]
[1735647551993,1.5198,194.38,194.25,10.19365474]
[1735647552718,1.5198,194.38,194.29,0.12549]
[1735647553098,6.4726,194.37,194.28,20.0]
[1735647553300,6.4726,194.37,194.24,137.6]
[1735647553495,6.4726,194.33,194.22,8.08024741]
[1735647553700,1.5198,194.32,194.2,10.19365474]
[1735647554013,1.5198,194.32,194.19,155.87390215]
[1735647554614,1.5198,194.32,194.2,10.57012474]
[1735647555120,1.5198,194.32,194.2,10.44463474]
[1735647555923,1.5198,194.32,194.21,0.12549]
[1735647556420,1.5198,194.32,194.23,0.12549]
[1735647559119,1.5198,194.32,194.23,10.57012474]
[1735647559417,1.5198,194.32,194.23,0.37647]
[1735647565930,1.5198,194.32,194.23,10.57012474]
[1735647567534,1.5198,194.32,194.23,0.37647]
[1735647568133,1.5198,194.32,194.23,10.57012474]
[1735647569431,1.5198,194.32,194.23,0.25098]
[1735647570436,7.7535,194.29,194.14,219.6]
[1735647570939,7.7535,194.29,194.17,0.37647]
[1735647571336,7.7535,194.29,194.17,30.57012474]
[1735647571543,7.7535,194.29,194.18,20.25098]
[1735647572233,7.7535,194.29,194.2,10.57012474]
[1735647572932,7.7535,194.29,194.22,0.37647]
[1735647575743,7.7535,194.29,194.22,10.57012474]
[1735647576117,7.7535,194.29,194.24,0.12549]
[1735647577039,7.7535,194.29,194.25,10.31914474]
[1735647577726,7.7535,194.29,194.25,0.12549]
[1735647577929,7.7535,194.29,194.24,0.12549]
[1735647578128,7.7535,194.29,194.24,0.25098]
[1735647578633,7.7535,194.29,194.24,0.12549]
[1735647579538,7.7535,194.29,194.19,147.79365474]
[1735647579939,7.7535,194.29,194.2,0.37647]
[1735647580323,7.7535,194.29,194.18,10.19365474]
[1735647580949,7.7535,194.29,194.19,0.25098]
[1735647581440,7.7535,194.29,194.19,0.12549]
[1735647586740,7.7535,194.29,194.19,10.31914474]
[1735647586939,7.7535,194.29,194.2,10.19365474]
[1735647587444,7.7535,194.29,194.2,0.12549]
[1735647587844,7.7535,194.29,194.2,10.19365474]
[1735647592450,7.7535,194.29,194.2,0.12549]
[1735647595252,7.7535,194.29,194.2,10.19365474]
[1735647599555,7.7535,194.29,194.21,10.44463474]
[1735647599750,7.7535,194.29,194.22,0.12549]
[1735647600450,7.7535,194.29,194.23,0.12549]
[1735647600649,7.7535,194.29,194.23,10.44463474]
[1735647600953,7.7535,194.29,194.23,0.25098]
[1735647604955,21.5817,194.25,194.18,8.08024741]
[1735647605161,27.7529,194.25,194.19,8.08024741]
[1735647605335,23.776884,194.24,194.19,8.08024741]
[1735647605731,27.7529,194.25,194.19,8.08024741]
[1735647606534,27.7529,194.25,194.14,10.19365474]
[1735647607580,27.7529,194.25,194.15,0.25098]
[1735647607869,27.7529,194.25,194.17,10.44463474]
[1735647608355,27.7529,194.25,194.17,0.25098]
[1735647609782,27.7529,194.25,194.14,10.19365474]
[1735647610271,27.7529,194.25,194.15,0.37647]
[1735647612459,27.7529,194.25,194.15,10.57012474]
[1735647612968,27.7529,194.25,194.17,0.12549]
[1735647613561,27.7529,194.25,194.16,0.25098]
[1735647615769,7.7529,194.25,194.16,0.25098]
[1735647615971,7.7529,194.25,194.18,0.12549]
[1735647620577,7.7529,194.25,194.18,10.31914474]
[1735647623176,7.7529,194.25,194.18,0.12549]
[1735647624379,7.7529,194.25,194.19,10.19365474]
[1735647624554,7.7529,194.25,194.18,10.31914474]
[1735647624750,7.7529,194.25,194.18,0.12549]
[1735647624948,7.7529,194.25,194.2,0.12549]
[1735647625275,1.5817,194.25,194.23,0.12549]
[1735647625462,7.6664,194.3,194.23,10.57012474]
[1735647628278,7.6664,194.3,194.25,0.25098]
[1735647628652,7.6664,194.3,194.24,0.12549]
[1735647628866,7.6664,194.3,194.24,0.37647]
[1735647629585,1.5269,194.3,194.24,10.57012474]
[1735647629769,1.5269,194.3,194.2,31.85713141]
[1735647629770,7.9453,194.35,194.28,10.44463474]
[1735647630184,7.9453,194.35,194.29,0.12549]
[1735647630484,7.9453,194.35,194.28,0.25098]
[1735647631554,7.9453,194.35,194.29,0.12549]
[1735647632379,1.6534,194.38,194.29,0.12549]
[1735647632674,1.6534,194.38,194.31,0.12549]
[1735647635185,20.0,194.36,194.24,8.08024741]
[1735647635676,20.0,194.36,194.25,24.153354]
[1735647636060,20.0,194.36,194.25,20.25098]
[1735647636370,20.0,194.36,194.26,0.12549]
[1735647641284,20.0,194.36,194.27,0.25098]
[1735647641682,6.4396,194.35,194.23,82.0]
[1735647641891,1.5814,194.31,194.2,147.79365474]
[1735647642083,1.5814,194.31,194.21,24.153354]
[1735647642884,1.5814,194.31,194.21,20.0]
[1735647643266,6.4396,194.3,194.19,20.0]
[1735647643466,6.4396,194.3,194.16,147.18864741]
[1735647643783,6.4396,194.3,194.2,0.37647]
[1735647645483,6.4396,194.3,194.17,23.776884]
[1735647645685,6.4396,194.3,194.18,0.37647]
[1735647649395,6.4396,194.3,194.18,20.37647]
[1735647652508,6.4396,194.3,194.18,30.57012474]
[1735647655220,6.4396,194.3,194.18,10.57012474]
[1735647657612,6.4396,194.3,194.2,0.37647]
[1735647657787,6.4396,194.3,194.22,0.37647]
[1735647665921,1.5814,194.31,194.27,0.25098]
[1735647666226,1.5814,194.31,194.29,10.19365474]
[1735647666531,1.5814,194.31,194.29,0.37647]
[1735647667298,1.5814,194.31,194.21,169.45713141]
[1735647667517,1.5814,194.31,194.22,10.19365474]
[1735647668003,1.5814,194.31,194.2,18.27390215]
[1735647668506,6.2877,194.3,194.21,24.153354]
[1735647674712,6.2877,194.3,194.21,0.37647]
[1735647674934,20.0,194.27,194.19,10.19365474]
[1735647675143,20.0,194.27,194.18,10.19365474]
[1735647675341,20.0,194.27,194.2,0.37647]
[1735647675844,20.0,194.27,194.2,10.57012474]
[1735647680164,20.0,194.27,194.2,0.37647]
[1735647680457,20.0,194.27,194.2,0.25098]
[1735647680661,8.07115785,194.45,194.16,8.08024741]
[1735647680662,6.4722,194.25,194.16,8.08024741]
[1735647680956,20.0,194.22,194.15,8.08024741]
[1735647681573,20.0,194.18,194.15,8.08024741]
[1735647681957,20.0,194.18,194.1,61.26014257]
[1735647681958,20.0,194.18,194.11,0.37647]
[1735647682294,8.0209,194.21,194.11,0.37647]
[1735647683092,20.0,194.18,194.11,0.37647]
[1735647683684,20.0,194.18,194.11,10.57012474]
[1735647683883,20.0,194.18,194.11,0.37647]
[1735647686290,8.0209,194.21,194.11,10.57012474]
[1735647687489,8.0209,194.21,194.11,0.37647]
[1735647688594,8.0209,194.21,194.11,10.57012474]
[1735647688991,8.0209,194.21,194.11,0.37647]
[1735647693273,20.0,194.18,194.11,0.37647]
[1735647700307,20.0,194.18,194.08,10.19365474]
[1735647701012,20.0,194.18,194.09,0.37647]
[1735647704993,1.5133,194.17,194.09,0.37647]
[1735647705189,6.2867,194.16,194.09,0.37647]
[1735647711217,6.2867,194.16,194.09,10.57012474]
[1735647711922,6.2867,194.16,194.09,0.37647]
[1735647715239,6.2867,194.16,194.1,10.19365474]
[1735647715413,6.2867,194.16,194.11,0.37647]
[1735647721147,81.6,194.24,194.13,10.57012474]
[1735647721148,6.0712,194.2,194.13,10.57012474]
[1735647721459,1.5891,194.22,194.17,0.37647]
[1735647724752,21.5891,194.22,194.17,0.37647]
[1735647726951,21.5891,194.22,194.14,10.19365474]
[1735647727164,21.5891,194.22,194.13,10.19365474]
[1735647727967,21.5891,194.22,194.14,24.153354]
[1735647728341,21.5891,194.22,194.14,10.57012474]
[1735647728537,21.5891,194.22,194.16,0.37647]
[1735647729156,21.5891,194.22,194.16,10.57012474]
[1735647729339,21.5891,194.22,194.18,0.37647]
[1735647730462,1.5891,194.22,194.18,0.37647]
[1735647731337,6.0712,194.25,194.22,0.12549]
[1735647731869,6.0712,194.25,194.23,0.12549]
[1735647732464,21.5374,194.27,194.23,0.12549]
[1735647732762,21.5374,194.27,194.22,0.25098]
[1735647733257,21.5374,194.27,194.21,0.37647]
[1735647733947,21.5374,194.27,194.18,10.19365474]
[1735647734148,21.5374,194.27,194.17,10.19365474]
[1735647734666,21.5374,194.27,194.16,8.08024741]
[1735647734845,20.0,194.23,194.14,23.82973324]
[1735647735570,20.0,194.23,194.15,0.37647]
[1735647737439,20.0,194.23,194.15,10.57012474]
[1735647737635,6.1606,194.26,194.17,10.57012474]
[1735647739059,6.1606,194.26,194.19,0.37647]
[1735647739257,6.1606,194.26,194.21,10.57012474]
[1735647739865,1.5374,194.27,194.21,0.37647]
[1735647740073,6.1998,194.31,194.21,34.34700874]
[1735647740671,6.1998,194.31,194.21,24.153354]
[1735647741374,6.1998,194.31,194.21,0.37647]
[1735647743153,20.0,194.28,194.21,0.37647]
[1735647743476,6.1998,194.31,194.21,0.37647]
[1735647743657,6.1998,194.31,194.21,10.57012474]
[1735647743965,6.1998,194.31,194.21,34.34700874]
[1735647744573,6.1998,194.31,194.23,0.37647]
[1735647755399,21.6202,194.32,194.23,0.37647]
[1735647755697,1.6202,194.32,194.23,0.37647]
[1735647756386,21.6202,194.32,194.23,0.37647]
[1735647765922,20.0,194.32,194.23,0.37647]
[1735647775428,20.0,194.32,194.25,0.37647]
[1735647781713,20.0,194.32,194.25,0.25098]
[1735647781915,20.0,194.32,194.22,6.1651]
[1735647782107,20.0,194.32,194.23,0.37647]
[1735647783101,20.0,194.28,194.19,9.65204741]
[1735647783718,20.0,194.28,194.2,0.25098]
[1735647788033,20.0,194.33,194.21,0.12549]
[1735647790642,81.6,194.35,194.21,0.12549]
[1735647790944,81.6,194.35,194.2,30.44463474]
[1735647790945,81.6,194.35,194.23,0.37647]
[1735647791542,20.0,194.32,194.23,0.37647]
[1735647792639,20.0,194.32,194.25,0.37647]
[1735647795226,81.6,194.35,194.25,0.37647]
[1735647795426,23.776884,194.37,194.25,0.37647]
[1735647795626,81.6,194.38,194.25,0.37647]
[1735647795942,20.0,194.35,194.25,0.37647]
[1735647796145,20.0,194.35,194.25,24.153354]
[1735647796552,20.0,194.35,194.25,32.23360141]
[1735647797047,83.1088,194.41,194.3,1.5923]
[1735647797248,20.0,194.38,194.3,1.96877]
[1735647797626,81.6,194.41,194.3,1.96877]
[1735647798362,20.0,194.38,194.3,1.96877]
[1735647798857,81.6,194.44,194.3,1.96877]
[1735647799027,23.776884,194.43,194.3,1.96877]
[1735647799233,20.0,194.4,194.3,1.96877]
[1735647804175,23.776884,194.39,194.3,1.96877]
[1735647804350,20.0,194.36,194.3,1.96877]
[1735647804545,20.0,194.32,194.26,8.08024741]
[1735647805257,20.0,194.32,194.27,0.37647]
[1735647806867,23.776884,194.31,194.22,8.08024741]
[1735647807040,20.0,194.32,194.22,8.08024741]
[1735647807245,20.0,194.36,194.23,0.37647]
[1735647807669,20.0,194.32,194.23,0.37647]
[1735647810184,23.776884,194.38,194.23,0.37647]
[1735647810363,23.776884,194.38,194.25,0.37647]
[1735647811385,20.0,194.35,194.25,0.37647]
[1735647813587,20.0,194.35,194.25,26.74017]
[1735647813772,81.6,194.43,194.27,0.37647]
[1735647813961,20.0,194.4,194.29,0.37647]
[1735647814458,23.776884,194.42,194.29,0.37647]
[1735647814658,23.776884,194.42,194.31,0.37647]
[1735647815473,20.0,194.4,194.31,0.37647]
[1735647817595,20.0,194.4,194.33,0.37647]
[1735647820493,8.0273,194.5,194.35,0.37647]
[1735647821379,20.0,194.47,194.35,0.37647]
[1735647822004,20.0,194.47,194.37,0.37647]
[1735647822206,0.22,194.53,194.39,0.37647]
[1735647822497,20.22,194.53,194.39,0.37647]
[1735647822887,20.0,194.49,194.39,0.37647]
[1735647823487,20.12549,194.52,194.39,0.25098]
[1735647823689,20.12549,194.52,194.34,1.5894]
[1735647824006,20.12549,194.52,194.35,0.25098]
[1735647824197,0.12549,194.5,194.34,1.5894]
[1735647824503,1.572,194.49,194.34,1.5894]
[1735647824798,20.0,194.44,194.35,0.37647]
[1735647824985,20.0,194.4,194.34,1.5894]
[1735647825395,20.0,194.4,194.35,0.37647]
[1735647825897,23.776884,194.47,194.35,0.37647]
[1735647826273,23.776884,194.43,194.35,0.37647]
[1735647827802,20.0,194.45,194.35,0.37647]
[1735647829500,8.4692,194.53,194.37,0.37647]
[1735647829811,20.0,194.49,194.37,0.37647]
[1735647830395,20.0,194.49,194.39,0.37647]
[1735647830988,23.776884,194.44,194.34,1.6066]
[1735647832303,20.0,194.41,194.35,0.37647]
[1735647834114,20.0,194.41,194.35,0.25098]
[1735647839912,0.22,194.53,194.38,0.12549]
[1735647840092,0.22,194.53,194.4,1.98307]
[1735647841096,20.22,194.53,194.4,1.98307]
[1735647841296,23.776884,194.52,194.4,1.98307]
[1735647841502,0.22,194.53,194.4,1.98307]
[1735647842018,23.776884,194.52,194.4,1.98307]
[1735647843014,0.22,194.53,194.4,1.98307]
[1735647843203,0.22,194.53,194.42,0.37647]
[1735647845018,0.22,194.53,194.44,0.37647]
[1735647845516,20.22,194.53,194.44,0.37647]
[1735647845894,0.22,194.53,194.44,0.37647]
[1735647846093,0.22,194.53,194.46,0.37647]
[1735647856901,0.22,194.53,194.46,10.57012474]
[1735647858626,0.22,194.53,194.46,0.37647]
[1735647874846,0.22,194.53,194.46,24.153354]
[1735647875022,0.22,194.53,194.46,34.34700874]
[1735647876423,0.22,194.53,194.48,0.37647]
[1735647876623,0.22,194.53,194.48,10.57012474]
[1735647878263,0.22,194.53,194.5,0.37647]
[1735647888778,0.22,194.53,194.52,148.17012474]
[1735647888961,0.22,194.53,194.52,137.97647]
[1735647889162,0.22,194.53,194.52,0.37647]
[1735647889850,0.22,194.53,194.52,10.57012474]
[1735647891878,0.22,194.53,194.52,0.37647]
[1735647892079,0.22,194.53,194.52,10.57012474]
[1735647896977,0.22,194.53,194.52,0.12549]
[1735647897186,0.22,194.53,194.51,137.6]
[1735647897656,0.22,194.53,194.51,0.37647]
[1735647903286,0.22,194.53,194.49,10.19365474]
[1735647903287,0.22,194.53,194.48,8.02094019]
[1735647903885,0.22,194.53,194.49,0.37647]
[1735647916868,0.22,194.53,194.49,10.57012474]
[1735647917375,0.22,194.53,194.49,0.37647]
[1735647919497,0.22,194.53,194.49,10.57012474]
[1735647920285,0.22,194.53,194.51,10.57012474]
[1735647920489,0.22,194.53,194.52,10.57012474]
[1735647920990,0.22,194.53,194.52,0.37647]
[1735647921297,0.22,194.53,194.52,10.57012474]
[1735647922807,0.22,194.53,194.52,20.37647]
[1735647923100,0.22,194.53,194.52,0.37647]
[1735647923518,0.22,194.53,194.52,0.25098]
[1735647930723,0.22,194.53,194.52,0.37647]
[1735647934827,0.22,194.53,194.52,0.25098]
[1735647935522,0.22,194.53,194.52,0.12549]
[1735647936021,23.996884,194.53,194.46,8.02094019]
[1735647936399,23.996884,194.53,194.47,0.25098]
[1735647937022,23.996884,194.53,194.46,0.12549]
[1735647939927,20.0,194.5,194.42,8.02094019]
[1735647940434,20.0,194.5,194.43,0.37647]
[1735647940940,20.0,194.5,194.41,8.02094019]
[1735647940941,31.613184,194.49,194.41,8.02094019]
[1735647941506,31.613184,194.49,194.42,0.12549]
[1735647941809,31.613184,194.49,194.41,8.02094019]
[1735647942116,31.613184,194.49,194.38,20.0]
[1735647942840,31.613184,194.49,194.39,0.37647]
[1735647944631,31.613184,194.49,194.33,8.02094019]
[1735647944632,23.776884,194.45,194.33,8.02094019]
[1735647945349,23.776884,194.45,194.34,0.37647]
[1735647945640,23.776884,194.45,194.34,0.25098]
[1735647946241,23.776884,194.45,194.35,0.12549]